fUST/lending_fUST_20251225
["ID","MTS","AMOUNT","RATE_DAILY","PERIOD"]
[399672822,1766603439981,-28359.2412561,0.00013005,2]
[399672824,1766603439991,-208.75270596,0.00013006,2]
[399672826,1766603440001,-180.736,0.00013006,2]
[399672828,1766603440011,-137.25075928,0.00013079,2]
[399672832,1766603440037,-341.50649399,0.00013079,2]
[399672833,1766603440047,-18.48626285,0.00013087,2]
[399672959,1766603443080,-4182.0,0.00013087,2]
[399672969,1766603445934,-5000.0,0.00012956,2]
[399672970,1766603445945,-24125.61380679,0.00013087,2]
[399672982,1766603489313,150.0,5.464e-05,2]
[399672983,1766603489620,150.0,5.961e-05,2]
[399672984,1766603489992,150.0,6.458e-05,2]
[399672985,1766603490492,150.0,6.955e-05,2]
[399672986,1766603490769,150.0,7.451e-05,2]
[399672987,1766603491170,150.0,7.948e-05,2]
[399672988,1766603491776,150.0,8.445e-05,2]
[399672989,1766603492414,160.15,8.942e-05,2]
[399672990,1766603492481,180.17,9.439e-05,2]
[399672991,1766603492737,109.68,9.935e-05,2]
[399672992,1766603492761,72.91457602,9.935e-05,2]
[399673121,1766604071980,505.08542398,0.000108,2]
[399673231,1766604632022,-1041.66666667,0.00010109,2]
[399673233,1766604632032,-6.61214039,0.00010201,2]
[399673235,1766604632044,-556.38785961,0.00010201,2]
[399673237,1766604632055,-161.58443342,0.00010242,2]
[399673239,1766604632064,-4498.68829705,0.00010282,2]
[399673242,1766604632088,-501.31170295,0.00010282,2]
[399673243,1766604632097,-614.0,0.00010644,2]
[399673244,1766604632107,-300.0,0.00010644,2]
[399673245,1766604632117,-180.0,0.00010644,2]
[399673246,1766604632127,-4087.2883306,0.00010645,2]
[399673247,1766604632136,-1186.6988183,0.00010765,2]
[399673248,1766604632146,-205.57090227,0.00011088,2]
[399673249,1766604632156,-171.58673399,0.00011501,2]
[399673251,1766604632166,-792.23961942,0.00011578,2]
[399673295,1766604638134,-5000.0,0.00010008,2]
[399673298,1766604638145,-748.19843738,0.00011578,2]
[399673300,1766604638155,-420.0,0.00011701,2]
[399673301,1766604638165,-49611.22898047,0.00011701,2]
[399673303,1766604638174,-349.53259522,0.00011845,2]
[399673305,1766604638184,-320.80769407,0.00011903,2]
[399673307,1766604638194,-570.32478946,0.00011903,2]
[399673309,1766604638204,-890.24135105,0.00011903,2]
[399673311,1766604638215,-190.66963143,0.00012242,2]
[399673313,1766604638224,-832.22964279,0.00012262,2]
[399673315,1766604638234,-832.22964275,0.00012596,2]
[399673317,1766604638244,-500.0,0.00012599,2]
[399673319,1766604638254,-185.38836166,0.00012599,2]
[399673321,1766604638264,-500.0,0.00012599,2]
[399673323,1766604638274,-500.0,0.00012599,2]
[399673325,1766604638284,-500.0,0.00012599,2]
[399673327,1766604638293,-500.0,0.00012599,2]
[399673329,1766604638303,-500.0,0.00012599,2]
[399673331,1766604638313,-500.0,0.00012599,2]
[399673332,1766604638323,-500.0,0.00012599,2]
[399673334,1766604638332,-500.0,0.00012599,2]
[399673336,1766604638342,-500.0,0.00012599,2]
[399673338,1766604638352,-500.0,0.00012599,2]
[399673340,1766604638362,-500.0,0.00012599,2]
[399673342,1766604638372,-500.0,0.00012599,2]
[399673344,1766604638381,-500.0,0.00012599,2]
[399673346,1766604638391,-500.0,0.00012599,2]
[399673348,1766604638401,-500.0,0.00012599,2]
[399673349,1766604638410,-500.0,0.000126,2]
[399673351,1766604638419,-500.0,0.000126,2]
[399673353,1766604638429,-500.0,0.000126,2]
[399673355,1766604638438,-500.0,0.000126,2]
[399673357,1766604638448,-478.75725327,0.000126,2]
[399673359,1766604638457,-500.0,0.000126,2]
[399673361,1766604638467,-500.0,0.000126,2]
[399673363,1766604638476,-500.0,0.000126,2]
[399673365,1766604638485,-500.0,0.000126,2]
[399673367,1766604638495,-500.0,0.000126,2]
[399673368,1766604638504,-500.0,0.000126,2]
[399673370,1766604638513,-500.0,0.000126,2]
[399673372,1766604638522,-500.0,0.000126,2]
[399673374,1766604638532,-2477.00289333,0.0001264,2]
[399673376,1766604638541,-587.0,0.00012863,2]
[399673378,1766604638551,-832.22964275,0.00012931,2]
[399673380,1766604638560,-304.0739254,0.0001295,2]
[399673382,1766604638570,-443.61241182,0.00013005,2]
[399673384,1766604638580,-151.0,0.00013086,2]
[399673386,1766604638590,-124608.5613093,0.00013087,2]
[399673388,1766604638600,-151.0,0.00013087,2]
[399673390,1766604638609,-339.95374353,0.00013115,2]
[399673392,1766604638619,-611.91673835,0.00013115,2]
[399673394,1766604638630,-1087.85197929,0.00013115,2]
[399673396,1766604638639,-1699.76871764,0.00013115,2]
[399673398,1766604638649,-2445.21928645,0.00013115,2]
[399673400,1766604638659,-496.47127164,0.00013148,2]
[399673402,1766604638669,-153.0,0.00013151,2]
[399673404,1766604638678,-168.0,0.00013234,2]
[399673405,1766604638688,-832.22964275,0.00013265,2]
[399673407,1766604638698,-174.47854702,0.0001327,2]
[399673409,1766604638708,-314.06138463,0.0001327,2]
[399673411,1766604638722,-558.33135046,0.0001327,2]
[399673413,1766604638731,-871.52034235,0.0001327,2]
[399673415,1766604638741,-500.0,0.00013273,2]
[399673417,1766604638751,-500.0,0.00013273,2]
[399673419,1766604638762,-500.0,0.00013273,2]
[399673421,1766604638772,-500.0,0.00013273,2]
[399673423,1766604638781,-500.0,0.00013273,2]
[399673425,1766604638791,-500.0,0.00013273,2]
[399673427,1766604638800,-500.0,0.00013273,2]
[399673428,1766604638811,-560.38354727,0.00013273,2]
[399673431,1766604638821,-500.0,0.00013273,2]
[399673432,1766604638832,-500.0,0.00013273,2]
[399673434,1766604638843,-500.0,0.00013273,2]
[399673436,1766604638854,-500.0,0.00013273,2]
[399673438,1766604638864,-500.0,0.00013273,2]
[399673440,1766604638874,-500.0,0.00013273,2]
[399673442,1766604638884,-500.0,0.00013273,2]
[399673444,1766604638894,-500.0,0.00013273,2]
[399673446,1766604638904,-538.19055083,0.00013273,2]
[399673448,1766604638915,-500.0,0.00013273,2]
[399673450,1766604638925,-500.0,0.00013273,2]
[399673452,1766604638936,-500.0,0.00013273,2]
[399673454,1766604638946,-500.46970248,0.00013273,2]
[399673456,1766604638956,-500.0,0.00013273,2]
[399673458,1766604638966,-500.0,0.00013273,2]
[399673459,1766604638976,-500.0,0.00013273,2]
[399673461,1766604638985,-500.0,0.00013273,2]
[399673463,1766604638995,-336.32344212,0.00013273,2]
[399673465,1766604639004,-500.0,0.00013273,2]
[399673467,1766604639014,-500.0,0.00013273,2]
[399673469,1766604639024,-202.90378031,0.00013273,2]
[399673471,1766604639034,-500.0,0.00013273,2]
[399673473,1766604639044,-168.0,0.00013423,2]
[399673474,1766604639053,-600.0,0.00013535,2]
[399673476,1766604639063,-10000.0,0.00013599,2]
[399673478,1766604639073,-832.22964275,0.00013599,2]
[399673480,1766604639083,-300.0,0.00013673,2]
[399673482,1766604639092,-514.84070869,0.00013696,2]
[399673484,1766604639102,-500.0,0.00013698,2]
[399673486,1766604639116,-500.0,0.00013698,2]
[399673488,1766604639126,-279.87,0.00013698,2]
[399673490,1766604639137,-500.0,0.00013698,2]
[399673492,1766604639148,-500.0,0.00013698,2]
[399673494,1766604639158,-500.0,0.00013698,2]
[399673496,1766604639169,-500.0,0.00013698,2]
[399673498,1766604639180,-428.51898813,0.00013698,2]
[399673500,1766604639190,-500.0,0.00013698,2]
[399673502,1766604639202,-220.41,0.00013698,2]
[399673504,1766604639213,-500.0,0.00013698,2]
[399673506,1766604639224,-1099.53,0.00013698,2]
[399673507,1766604639234,-1099.53,0.00013698,2]
[399673509,1766604639245,-1099.53,0.00013698,2]
[399673511,1766604639256,-1099.53,0.00013698,2]
[399673513,1766604639267,-1099.53,0.00013698,2]
[399673515,1766604639278,-1099.53,0.00013698,2]
[399673517,1766604639289,-1099.53,0.00013698,2]
[399673519,1766604639300,-1099.53,0.00013698,2]
[399673521,1766604639311,-1099.53,0.00013698,2]
[399673523,1766604639320,-1099.53,0.00013698,2]
[399673525,1766604639330,-1099.53,0.00013698,2]
[399673527,1766604639340,-1099.53,0.00013698,2]
[399673528,1766604639349,-1099.53,0.00013698,2]
[399673530,1766604639359,-1099.53,0.00013698,2]
[399673532,1766604639369,-1099.53,0.00013698,2]
[399673534,1766604639379,-1099.53,0.00013698,2]
[399673536,1766604639389,-1099.53,0.00013698,2]
[399673538,1766604639398,-1099.53,0.00013698,2]
[399673540,1766604639408,-1099.53,0.00013698,2]
[399673541,1766604639417,-1099.53,0.00013698,2]
[399673544,1766604639429,-1099.53,0.00013698,2]
[399673545,1766604639439,-1099.53,0.00013698,2]
[399673547,1766604639450,-1099.53,0.00013698,2]
[399673549,1766604639460,-1099.69068876,0.00013698,2]
[399673551,1766604639470,-500.0,0.00013699,2]
[399673553,1766604639480,-500.0,0.00013699,2]
[399673555,1766604639489,-500.0,0.00013699,2]
[399673557,1766604639499,-500.0,0.00013699,2]
[399673559,1766604639509,-500.0,0.00013699,2]
[399673561,1766604639517,-500.0,0.00013699,2]
[399673563,1766604639526,-500.0,0.00013699,2]
[399673565,1766604639536,-5168.0,0.00013699,2]
[399673567,1766604639545,-179.9640072,0.00013699,2]
[399673569,1766604639555,-64853.8038729,0.00013699,2]
[399673571,1766604639565,-1000.0,0.00013699,2]
[399673573,1766604639575,-2940.1040572,0.00013699,2]
[399673575,1766604639585,-7679.595734,0.00013699,2]
[399673577,1766604639595,-12470.1969435,0.00013699,2]
[399673579,1766604639605,-17341.4676122,0.00013699,2]
[399673581,1766604639614,-151.0,0.00013699,2]
[399673583,1766604639624,-151.0,0.00013699,2]
[399673585,1766604639633,-151.0,0.00013699,2]
[399673587,1766604639643,-287.089153,0.00013699,2]
[399673589,1766604639653,-172.110445,0.00013699,2]
[399673590,1766604639663,-163.348095,0.00013699,2]
[399673593,1766604639673,-151.0,0.00013699,2]
[399673594,1766604639683,-184.15438727,0.00013699,2]
[399673596,1766604639693,-158.286234,0.00013699,2]
[399673598,1766604639703,-158.286234,0.00013699,2]
[399673600,1766604639716,-158.286234,0.00013699,2]
[399673602,1766604639727,-158.286234,0.00013699,2]
[399673604,1766604639737,-158.286234,0.00013699,2]
[399673606,1766604639746,-158.286234,0.00013699,2]
[399673608,1766604639756,-158.286234,0.00013699,2]
[399673610,1766604639766,-158.286234,0.00013699,2]
[399673612,1766604639776,-158.286234,0.00013699,2]
[399673614,1766604639786,-158.286234,0.00013699,2]
[399673617,1766604639802,-158.286234,0.00013699,2]
[399673619,1766604639811,-158.286234,0.00013699,2]
[399673622,1766604639821,-318.997197,0.00013699,2]
[399673625,1766604639830,-318.997197,0.00013699,2]
[399673628,1766604639839,-318.997197,0.00013699,2]
[399673631,1766604639849,-318.997197,0.00013699,2]
[399673634,1766604639859,-318.997197,0.00013699,2]
[399673637,1766604639869,-318.997197,0.00013699,2]
[399673640,1766604639879,-318.997197,0.00013699,2]
[399673643,1766604639888,-318.997197,0.00013699,2]
[399673646,1766604639898,-318.997197,0.00013699,2]
[399673649,1766604639907,-318.997197,0.00013699,2]
[399673652,1766604639917,-318.997197,0.00013699,2]
[399673655,1766604639927,-318.997197,0.00013699,2]
[399673658,1766604639936,-170.664355,0.00013699,2]
[399673661,1766604639948,-151.0,0.00013699,2]
[399673664,1766604639958,-151.0,0.00013699,2]
[399673668,1766604639970,-151.0,0.00013699,2]
[399673671,1766604639980,-151.0,0.00013699,2]
[399673673,1766604639989,-151.0,0.00013699,2]
[399673674,1766604639998,-151.0,0.00013699,2]
[399673676,1766604640008,-151.0,0.00013699,2]
[399673679,1766604640017,-151.0,0.00013699,2]
[399673681,1766604640026,-192.462863,0.00013699,2]
[399673684,1766604640036,-151.0,0.00013699,2]
[399673687,1766604640045,-151.0,0.00013699,2]
[399673689,1766604640055,-151.0,0.00013699,2]
[399673692,1766604640064,-151.0,0.00013699,2]
[399673695,1766604640074,-151.0,0.00013699,2]
[399673698,1766604640084,-295.28910862,0.00013699,2]
[399673701,1766604640093,-151.0,0.00013699,2]
[399673704,1766604640103,-151.0,0.00013699,2]
[399673707,1766604640113,-151.0,0.00013699,2]
[399673710,1766604640123,-151.0,0.00013699,2]
[399673713,1766604640133,-273.692462,0.00013699,2]
[399673716,1766604640143,-151.0,0.00013699,2]
[399673719,1766604640152,-151.0,0.00013699,2]
[399673722,1766604640162,-151.0,0.00013699,2]
[399673725,1766604640173,-151.0,0.00013699,2]
[399673728,1766604640182,-151.0,0.00013699,2]
[399673731,1766604640191,-151.0,0.00013699,2]
[399673734,1766604640201,-151.0,0.00013699,2]
[399673737,1766604640211,-154.354932,0.00013699,2]
[399673740,1766604640221,-151.0,0.00013699,2]
[399673743,1766604640230,-151.0,0.00013699,2]
[399673746,1766604640240,-151.0,0.00013699,2]
[399673747,1766604640249,-151.0,0.00013699,2]
[399673749,1766604640259,-151.0,0.00013699,2]
[399673751,1766604640269,-285.865472,0.00013699,2]
[399673753,1766604640279,-371.776555,0.00013699,2]
[399673755,1766604640288,-371.776555,0.00013699,2]
[399673757,1766604640298,-371.776555,0.00013699,2]
[399673759,1766604640308,-371.776555,0.00013699,2]
[399673761,1766604640317,-371.776555,0.00013699,2]
[399673763,1766604640328,-371.776555,0.00013699,2]
[399673765,1766604640337,-371.776555,0.00013699,2]
[399673768,1766604640346,-371.776555,0.00013699,2]
[399673770,1766604640356,-371.776555,0.00013699,2]
[399673771,1766604640366,-371.776555,0.00013699,2]
[399673773,1766604640376,-371.776555,0.00013699,2]
[399673775,1766604640385,-371.776555,0.00013699,2]
[399673777,1766604640395,-371.776555,0.00013699,2]
[399673779,1766604640404,-371.776555,0.00013699,2]
[399673781,1766604640413,-371.776555,0.00013699,2]
[399673783,1766604640423,-371.776555,0.00013699,2]
[399673785,1766604640433,-371.776555,0.00013699,2]
[399673787,1766604640441,-371.776555,0.00013699,2]
[399673789,1766604640452,-371.776555,0.00013699,2]
[399673791,1766604640461,-371.776556,0.00013699,2]
[399673793,1766604640470,-568.569431,0.00013699,2]
[399673795,1766604640480,-2013.627158,0.00013699,2]
[399673796,1766604640489,-568.569431,0.00013699,2]
[399673798,1766604640498,-2013.627158,0.00013699,2]
[399673800,1766604640508,-568.569431,0.00013699,2]
[399673802,1766604640518,-2013.627158,0.00013699,2]
[399673804,1766604640528,-568.569431,0.00013699,2]
[399673806,1766604640537,-2013.627158,0.00013699,2]
[399673808,1766604640546,-568.569431,0.00013699,2]
[399673810,1766604640555,-2013.627158,0.00013699,2]
[399673812,1766604640564,-568.569431,0.00013699,2]
[399673814,1766604640573,-2013.627158,0.00013699,2]
[399673815,1766604640583,-568.569431,0.00013699,2]
[399673817,1766604640592,-2013.627158,0.00013699,2]
[399673819,1766604640601,-568.569431,0.00013699,2]
[399673821,1766604640610,-2013.627158,0.00013699,2]
[399673823,1766604640620,-568.569431,0.00013699,2]
[399673825,1766604640630,-2013.627158,0.00013699,2]
[399673827,1766604640640,-568.569431,0.00013699,2]
[399673829,1766604640650,-2013.627158,0.00013699,2]
[399673831,1766604640660,-568.569431,0.00013699,2]
[399673833,1766604640669,-2013.627158,0.00013699,2]
[399673835,1766604640678,-568.569431,0.00013699,2]
[399673837,1766604640688,-2013.627158,0.00013699,2]
[399673839,1766604640697,-568.569431,0.00013699,2]
[399673841,1766604640707,-2013.627158,0.00013699,2]
[399673842,1766604640720,-568.569431,0.00013699,2]
[399673844,1766604640731,-2013.627158,0.00013699,2]
[399673846,1766604640741,-568.569431,0.00013699,2]
[399673848,1766604640750,-2013.627158,0.00013699,2]
[399673850,1766604640762,-568.569431,0.00013699,2]
[399673852,1766604640771,-2013.627158,0.00013699,2]
[399673853,1766604640781,-568.569431,0.00013699,2]
[399673854,1766604640791,-2013.627158,0.00013699,2]
[399673855,1766604640800,-568.569431,0.00013699,2]
[399673856,1766604640809,-2013.627158,0.00013699,2]
[399673857,1766604640818,-568.569431,0.00013699,2]
[399673858,1766604640828,-2013.627158,0.00013699,2]
[399673859,1766604640839,-568.569422,0.00013699,2]
[399673860,1766604640849,-2013.627162,0.00013699,2]
[399673861,1766604640859,-151.0,0.00013699,2]
[399673862,1766604640868,-151.0,0.00013699,2]
[399673863,1766604640878,-151.0,0.00013699,2]
[399673864,1766604640890,-151.0,0.00013699,2]
[399673865,1766604640899,-151.0,0.00013699,2]
[399673866,1766604640910,-151.0,0.00013699,2]
[399673867,1766604640920,-151.0,0.00013699,2]
[399673868,1766604640929,-268.929517,0.00013699,2]
[399673869,1766604640939,-151.0,0.00013699,2]
[399673870,1766604640948,-290.175699,0.00013699,2]
[399673871,1766604640957,-151.0,0.00013699,2]
[399673872,1766604640967,-152.321721,0.00013699,2]
[399673873,1766604640976,-208.474352,0.00013699,2]
[399673874,1766604640985,-153.549544,0.00013699,2]
[399673875,1766604640995,-151.0,0.00013699,2]
[399673876,1766604641005,-151.0,0.00013699,2]
[399673877,1766604641015,-151.0,0.00013699,2]
[399673878,1766604641025,-151.000004,0.00013699,2]
[399673879,1766604641034,-151.0,0.00013699,2]
[399673880,1766604641044,-151.0,0.00013699,2]
[399673881,1766604641053,-151.0,0.00013699,2]
[399673882,1766604641063,-151.0,0.00013699,2]
[399673883,1766604641072,-151.0,0.00013699,2]
[399673884,1766604641081,-151.0,0.00013699,2]
[399673885,1766604641092,-151.0,0.00013699,2]
[399673886,1766604641101,-151.0,0.00013699,2]
[399673887,1766604641112,-151.0,0.00013699,2]
[399673888,1766604641121,-151.0,0.00013699,2]
[399673889,1766604641130,-151.0,0.00013699,2]
[399673890,1766604641140,-151.0,0.00013699,2]
[399673891,1766604641149,-151.0,0.00013699,2]
[399673892,1766604641159,-151.0,0.00013699,2]
[399673893,1766604641169,-220.401442,0.00013699,2]
[399673894,1766604641178,-151.0,0.00013699,2]
[399673895,1766604641189,-151.0,0.00013699,2]
[399673896,1766604641198,-151.0,0.00013699,2]
[399673898,1766604641209,-155.763061,0.00013699,2]
[399673899,1766604641219,-1500.0,0.00013699,2]
[399673901,1766604641231,-166.526674,0.00013699,2]
[399673903,1766604641241,-166.526674,0.00013699,2]
[399673905,1766604641251,-166.526674,0.00013699,2]
[399673907,1766604641261,-166.526674,0.00013699,2]
[399673909,1766604641272,-166.526674,0.00013699,2]
[399673911,1766604641281,-166.526674,0.00013699,2]
[399673913,1766604641291,-166.526674,0.00013699,2]
[399673915,1766604641300,-166.526674,0.00013699,2]
[399673917,1766604641311,-166.526674,0.00013699,2]
[399673919,1766604641321,-166.526674,0.00013699,2]
[399673921,1766604641330,-166.526674,0.00013699,2]
[399673923,1766604641340,-166.526674,0.00013699,2]
[399673925,1766604641351,-166.526674,0.00013699,2]
[399673927,1766604641360,-166.526674,0.00013699,2]
[399673929,1766604641370,-166.526674,0.00013699,2]
[399673931,1766604641380,-166.526674,0.00013699,2]
[399673933,1766604641390,-166.526674,0.00013699,2]
[399673935,1766604641399,-166.526674,0.00013699,2]
[399673937,1766604641409,-166.526674,0.00013699,2]
[399673939,1766604641418,-166.526683,0.00013699,2]
[399673941,1766604641428,-151.0,0.00013699,2]
[399673943,1766604641437,-239.000142,0.00013699,2]
[399673945,1766604641447,-151.0,0.00013699,2]
[399673947,1766604641457,-179.276202,0.00013699,2]
[399673949,1766604641466,-169.375218,0.00013699,2]
[399673951,1766604641475,-151.0,0.00013699,2]
[399673953,1766604641485,-151.0,0.00013699,2]
[399673955,1766604641495,-151.0,0.00013699,2]
[399673957,1766604641504,-159.661795,0.00013699,2]
[399673959,1766604641513,-151.0,0.00013699,2]
[399673961,1766604641522,-151.0,0.00013699,2]
[399673963,1766604641532,-151.0,0.00013699,2]
[399673965,1766604641542,-151.0,0.00013699,2]
[399673967,1766604641551,-151.0,0.00013699,2]
[399673969,1766604641560,-151.0,0.00013699,2]
[399673971,1766604641569,-151.0,0.00013699,2]
[399673992,1766604641579,-202.202124,0.00013699,2]
[399674000,1766604641833,-151.070682,0.00013699,2]
[399674002,1766604641844,-151.0,0.00013699,2]
[399674003,1766604641854,-174.840383,0.00013699,2]
[399674005,1766604641864,-155.704115,0.00013699,2]
[399674007,1766604641873,-151.0,0.00013699,2]
[399674010,1766604641883,-151.0,0.00013699,2]
[399674012,1766604641892,-219.470914,0.00013699,2]
[399674014,1766604641902,-151.0,0.00013699,2]
[399674016,1766604641911,-151.0,0.00013699,2]
[399674017,1766604641920,-151.0,0.00013699,2]
[399674019,1766604641930,-242.219268,0.00013699,2]
[399674021,1766604641939,-165.204007,0.00013699,2]
[399674023,1766604641949,-165.204007,0.00013699,2]
[399674025,1766604641958,-165.204007,0.00013699,2]
[399674027,1766604641967,-165.204007,0.00013699,2]
[399674029,1766604641977,-165.204007,0.00013699,2]
[399674031,1766604641986,-165.204007,0.00013699,2]
[399674033,1766604641996,-165.204007,0.00013699,2]
[399674035,1766604642006,-165.204007,0.00013699,2]
[399674037,1766604642015,-165.204007,0.00013699,2]
[399674039,1766604642024,-165.204007,0.00013699,2]
[399674041,1766604642034,-165.204007,0.00013699,2]
[399674043,1766604642043,-165.204007,0.00013699,2]
[399674045,1766604642052,-165.204007,0.00013699,2]
[399674047,1766604642061,-165.204007,0.00013699,2]
[399674049,1766604642071,-165.204007,0.00013699,2]
[399674051,1766604642081,-165.204007,0.00013699,2]
[399674053,1766604642090,-165.204007,0.00013699,2]
[399674055,1766604642103,-165.204007,0.00013699,2]
[399674057,1766604642114,-165.204007,0.00013699,2]
[399674059,1766604642123,-151.027056,0.00013699,2]
[399674061,1766604642132,-165.204008,0.00013699,2]
[399674063,1766604642142,-330.430823,0.00013699,2]
[399674065,1766604642151,-330.430823,0.00013699,2]
[399674067,1766604642161,-330.430823,0.00013699,2]
[399674069,1766604642170,-330.430823,0.00013699,2]
[399674071,1766604642179,-330.430823,0.00013699,2]
[399674073,1766604642189,-330.430823,0.00013699,2]
[399674075,1766604642199,-330.430823,0.00013699,2]
[399674077,1766604642209,-330.430823,0.00013699,2]
[399674079,1766604642218,-330.430823,0.00013699,2]
[399674081,1766604642228,-330.430823,0.00013699,2]
[399674083,1766604642237,-500.0,0.00013699,2]
[399674085,1766604642247,-500.0,0.00013699,2]
[399674087,1766604642256,-500.0,0.00013699,2]
[399674089,1766604642265,-500.0,0.00013699,2]
[399674091,1766604642276,-500.0,0.00013699,2]
[399674093,1766604642285,-159.63759601,0.00013699,2]
[399674095,1766604642294,-500.0,0.00013699,2]
[399674097,1766604642304,-565.13559706,0.00013699,2]
[399674099,1766604642313,-500.0,0.00013699,2]
[399674101,1766604642323,-500.0,0.00013699,2]
[399674103,1766604642332,-160.03869959,0.00013699,2]
[399674105,1766604642341,-500.0,0.00013699,2]
[399674107,1766604642351,-500.0,0.00013699,2]
[399674109,1766604642360,-500.0,0.00013699,2]
[399674111,1766604642369,-500.0,0.00013699,2]
[399674113,1766604642378,-500.0,0.00013699,2]
[399674115,1766604642387,-500.0,0.00013699,2]
[399674117,1766604642396,-500.0,0.00013699,2]
[399674119,1766604642406,-161.02277351,0.00013699,2]
[399674121,1766604642415,-500.0,0.00013699,2]
[399674123,1766604642425,-500.0,0.00013699,2]
[399674125,1766604642435,-500.0,0.00013699,2]
[399674127,1766604642445,-500.0,0.00013699,2]
[399674129,1766604642455,-500.0,0.00013699,2]
[399674131,1766604642464,-346.19479003,0.00013699,2]
[399674133,1766604642473,-500.0,0.00013699,2]
[399674135,1766604642482,-500.0,0.00013699,2]
[399674136,1766604642491,-500.0,0.00013699,2]
[399674138,1766604642500,-500.0,0.00013699,2]
[399674140,1766604642510,-500.0,0.00013699,2]
[399674142,1766604642519,-500.0,0.00013699,2]
[399674144,1766604642529,-303.70673687,0.00013699,2]
[399674146,1766604642538,-500.0,0.00013699,2]
[399674148,1766604642547,-500.0,0.00013699,2]
[399674150,1766604642557,-500.0,0.00013699,2]
[399674152,1766604642566,-158.06348113,0.00013699,2]
[399674154,1766604642575,-500.0,0.00013699,2]
[399674156,1766604642584,-158.26358148,0.00013699,2]
[399674158,1766604642593,-158.26363871,0.00013699,2]
[399674160,1766604642603,-500.0,0.00013699,2]
[399674162,1766604642612,-500.0,0.00013699,2]
[399674164,1766604642621,-500.0,0.00013699,2]
[399674166,1766604642631,-500.0,0.00013699,2]
[399674168,1766604642640,-158.26356094,0.00013699,2]
[399674170,1766604642649,-416.44863108,0.00013699,2]
[399674172,1766604642658,-500.0,0.00013699,2]
[399674174,1766604642668,-500.0,0.00013699,2]
[399674176,1766604642677,-500.0,0.00013699,2]
[399674179,1766604642686,-500.0,0.00013699,2]
[399674181,1766604642695,-500.0,0.00013699,2]
[399674183,1766604642705,-500.0,0.00013699,2]
[399674185,1766604642719,-500.0,0.00013699,2]
[399674187,1766604642729,-500.0,0.00013699,2]
[399674189,1766604642739,-500.0,0.00013699,2]
[399674192,1766604642748,-500.0,0.00013699,2]
[399674194,1766604642759,-158.2644276,0.00013699,2]
[399674196,1766604642769,-158.26363947,0.00013699,2]
[399674198,1766604642778,-500.0,0.00013699,2]
[399674200,1766604642787,-166.04906618,0.00013699,2]
[399674202,1766604642797,-500.0,0.00013699,2]
[399674204,1766604642806,-159.56184214,0.00013699,2]
[399674206,1766604642816,-500.0,0.00013699,2]
[399674208,1766604642826,-500.0,0.00013699,2]
[399674210,1766604642835,-500.0,0.00013699,2]
[399674212,1766604642845,-500.0,0.00013699,2]
[399674214,1766604642854,-500.0,0.00013699,2]
[399674215,1766604642863,-500.0,0.00013699,2]
[399674217,1766604642873,-500.0,0.00013699,2]
[399674219,1766604642883,-500.0,0.00013699,2]
[399674221,1766604642892,-500.0,0.00013699,2]
[399674223,1766604642902,-500.0,0.00013699,2]
[399674226,1766604642913,-160.06428391,0.00013699,2]
[399674227,1766604642922,-500.0,0.00013699,2]